[Event "Titled Tuesday Blitz February 28 Early 2023"]
[White "Liu, Casper"]
[Black "Novikov, Evgenij"]
[WhiteFideId "1454153"]
[BlackFideId "4125380"]
[WhiteElo "2221"]
[BlackElo "2242"]
[Result "1-0"]
[Round "08"]
[TimeControl "180+2"]
[Date "2023.02.28"]
[WhiteClock "0:01:44"]
[BlackClock "0:00:01"]

1. d4 {[%clk 0:03:00]}  Nf6 {[%clk 0:02:57]} 2. c4 {[%clk 0:03:01]}  g6 {[%clk 0:02:58]} 3. Nc3 {[%clk 0:03:01]}  Bg7 {[%clk 0:02:58]} 4. e4 {[%clk 0:03:02]}  O-O {[%clk 0:02:59]} 5. h4 {[%clk 0:03:02]}  c5 {[%clk 0:02:56]} 6. d5 {[%clk 0:03:03]}  b5 {[%clk 0:02:55]} 7. e5 {[%clk 0:03:03]}  Ne8 {[%clk 0:02:49]} 8. Nf3 {[%clk 0:03:03]}  d6 {[%clk 0:02:42]} 9. h5 {[%clk 0:03:01]}  Bg4 {[%clk 0:02:41]} 10. hxg6 {[%clk 0:03:00]}  fxg6 {[%clk 0:02:37]} 11. Bh6 {[%clk 0:03:00]}  Nd7 {[%clk 0:02:22]} 12. e6 {[%clk 0:02:33]}  Ne5 {[%clk 0:02:16]} 13. Be2 {[%clk 0:02:30]}  Bxf3 {[%clk 0:02:04]} 14. gxf3 {[%clk 0:02:30]}  Bxh6 {[%clk 0:01:56]} 15. Rxh6 {[%clk 0:02:31]}  Ng7 {[%clk 0:01:53]} 16. Nxb5 {[%clk 0:02:24]}  Nf5 {[%clk 0:01:45]} 17. Rh3 {[%clk 0:02:20]}  Rb8 {[%clk 0:01:40]} 18. f4 {[%clk 0:02:19]}  a6 {[%clk 0:01:34]} 19. Nc3 {[%clk 0:02:15]}  Rxb2 {[%clk 0:01:27]} 20. fxe5 {[%clk 0:02:15]}  Nd4 {[%clk 0:01:10]} 21. Qc1 {[%clk 0:02:05]}  Rxe2+ {[%clk 0:00:21]} 22. Nxe2 {[%clk 0:02:03]}  Nf3+ {[%clk 0:00:18]} 23. Kf1 {[%clk 0:01:57]}  h5 {[%clk 0:00:09]} 24. Qh6 {[%clk 0:01:53]}  Nxe5 {[%clk 0:00:09]} 25. Nf4 {[%clk 0:01:47]}  Rf6 {[%clk 0:00:09]} 26. Nxh5 {[%clk 0:01:43]}  gxh5 {[%clk 0:00:07]} 27. Rg3+ {[%clk 0:01:44]}  Ng4 {[%clk 0:00:07]} 28. Qxh5 {[%clk 0:01:44]}  Rxf2+ {[%clk 0:00:04]} 29. Kg1 {[%clk 0:01:44]}  Rf6 {[%clk 0:00:01]} 30. Qxg4+ {[%clk 0:01:44]} 1-0


[Site "https://www.chess.com"]

[Event "Titled Tuesday Blitz February 28 Early 2023"]
[White "Cabezas Solano, David Alejandro"]
[Black "Balla, Tamas-Kristof"]
[WhiteFideId "6507522"]
[BlackFideId "1208497"]
[WhiteElo "2030"]
[BlackElo "2334"]
[Result "0-1"]
[Round "08"]
[TimeControl "180+2"]
[Date "2023.02.28"]
[WhiteClock "0:00:01"]
[BlackClock "0:00:12"]

1. d4 {[%clk 0:03:00]}  d5 {[%clk 0:02:59]} 2. c4 {[%clk 0:02:59]}  e6 {[%clk 0:02:59]} 3. Nf3 {[%clk 0:02:59]}  c5 {[%clk 0:02:59]} 4. cxd5 {[%clk 0:02:55]}  exd5 {[%clk 0:03:00]} 5. Nc3 {[%clk 0:02:53]}  Nc6 {[%clk 0:03:00]} 6. Bf4 {[%clk 0:02:49]}  Nf6 {[%clk 0:02:54]} 7. e3 {[%clk 0:02:49]}  Be7 {[%clk 0:02:45]} 8. Be2 {[%clk 0:02:48]}  O-O {[%clk 0:02:45]} 9. O-O {[%clk 0:02:48]}  Bg4 {[%clk 0:02:43]} 10. dxc5 {[%clk 0:02:40]}  Bxc5 {[%clk 0:02:43]} 11. Rc1 {[%clk 0:02:36]}  Re8 {[%clk 0:02:35]} 12. Bg5 {[%clk 0:02:33]}  Be7 {[%clk 0:01:47]} 13. h3 {[%clk 0:02:05]}  Be6 {[%clk 0:01:45]} 14. Nb5 {[%clk 0:02:02]}  h6 {[%clk 0:01:43]} 15. Bf4 {[%clk 0:02:01]}  Rc8 {[%clk 0:01:41]} 16. Nfd4 {[%clk 0:01:49]}  a6 {[%clk 0:01:38]} 17. Nxc6 {[%clk 0:01:45]}  bxc6 {[%clk 0:01:30]} 18. Na7 {[%clk 0:01:40]}  Ra8 {[%clk 0:01:23]} 19. Nxc6 {[%clk 0:01:39]}  Qb6 {[%clk 0:01:15]} 20. Nxe7+ {[%clk 0:01:19]}  Rxe7 {[%clk 0:01:16]} 21. Rc2 {[%clk 0:01:18]}  Rd8 {[%clk 0:01:06]} 22. Be5 {[%clk 0:01:04]}  Ne4 {[%clk 0:01:02]} 23. Bd4 {[%clk 0:01:03]}  Qb7 {[%clk 0:00:50]} 24. Qd3 {[%clk 0:01:00]}  Bf5 {[%clk 0:00:48]} 25. Qd1 {[%clk 0:00:29]}  Qd7 {[%clk 0:00:40]} 26. Bd3 {[%clk 0:00:27]}  Re6 {[%clk 0:00:39]} 27. f3 {[%clk 0:00:22]}  Ng3 {[%clk 0:00:31]} 28. Rff2 {[%clk 0:00:18]}  Rg6 {[%clk 0:00:27]} 29. Bxf5 {[%clk 0:00:14]}  Nxf5 {[%clk 0:00:28]} 30. Qd3 {[%clk 0:00:12]}  Nh4 {[%clk 0:00:25]} 31. Kf1 {[%clk 0:00:10]}  Rc8 {[%clk 0:00:21]} 32. Rxc8+ {[%clk 0:00:04]}  Qxc8 {[%clk 0:00:21]} 33. Rc2 {[%clk 0:00:04]}  Qb8 {[%clk 0:00:22]} 34. f4 {[%clk 0:00:03]}  Nf5 {[%clk 0:00:13]} 35. Be5 {[%clk 0:00:02]}  Ng3+ {[%clk 0:00:12]} 36. Kf2 {[%clk 0:00:01]}  Qb7 {[%clk 0:00:11]} 37. Rc3 {[%clk 0:00:01]}  d4 {[%clk 0:00:11]} 38. Qxd4 {[%clk 0:00:01]}  Ne4+ {[%clk 0:00:12]} 39. Ke2 {[%clk 0:00:01]}  Nxc3+ {[%clk 0:00:12]} 40. Qxc3 {[%clk 0:00:02]}  Rxg2+ {[%clk 0:00:13]} 41. Kd3 {[%clk 0:00:03]}  Qd5+ {[%clk 0:00:13]} 42. Bd4 {[%clk 0:00:03]}  Qf5+ {[%clk 0:00:13]} 43. e4 {[%clk 0:00:02]}  Rg3+ {[%clk 0:00:13]} 44. Be3 {[%clk 0:00:02]}  Qxf4 {[%clk 0:00:13]} 45. Qc8+ {[%clk 0:00:02]}  Kh7 {[%clk 0:00:13]} 46. Qc5 {[%clk 0:00:02]}  Rxh3 {[%clk 0:00:12]} 47. Kd2 {[%clk 0:00:01]}  Rh2+ {[%clk 0:00:12]} 48. Kd3 {[%clk 0:00:01]}  Qf1+ {[%clk 0:00:12]} 49. Kd4 {[%clk 0:00:01]}  Qd1+ {[%clk 0:00:12]} 0-1


[Site "https://www.chess.com"]

[Event "Titled Tuesday Blitz February 28 Early 2023"]
[White "Ciuffoletti, Paolo"]
[Black "Womacka, Mathias"]
[WhiteFideId "807630"]
[BlackFideId "4611390"]
[WhiteElo "2143"]
[BlackElo "2377"]
[Result "0-1"]
[Round "08"]
[TimeControl "180+2"]
[Date "2023.02.28"]
[WhiteClock "0:00:14"]
[BlackClock "0:00:39"]

1. e4 {[%clk 0:03:00]}  c5 {[%clk 0:02:59]} 2. d4 {[%clk 0:02:59]}  cxd4 {[%clk 0:02:58]} 3. c3 {[%clk 0:02:58]}  dxc3 {[%clk 0:02:57]} 4. Nxc3 {[%clk 0:02:58]}  Nc6 {[%clk 0:02:57]} 5. Nf3 {[%clk 0:02:58]}  d6 {[%clk 0:02:56]} 6. Bc4 {[%clk 0:02:58]}  a6 {[%clk 0:02:56]} 7. O-O {[%clk 0:02:56]}  Nf6 {[%clk 0:02:54]} 8. h3 {[%clk 0:02:55]}  e6 {[%clk 0:02:53]} 9. Qe2 {[%clk 0:02:55]}  Be7 {[%clk 0:02:51]} 10. Rd1 {[%clk 0:02:55]}  Bd7 {[%clk 0:02:39]} 11. Bg5 {[%clk 0:02:47]}  Qb8 {[%clk 0:02:36]} 12. Rd2 {[%clk 0:02:40]}  Ne5 {[%clk 0:02:23]} 13. Bb3 {[%clk 0:02:11]}  Bc6 {[%clk 0:02:19]} 14. Rad1 {[%clk 0:02:05]}  O-O {[%clk 0:02:17]} 15. Bxf6 {[%clk 0:01:59]}  Bxf6 {[%clk 0:02:16]} 16. Rxd6 {[%clk 0:01:51]}  Qc7 {[%clk 0:02:10]} 17. R6d2 {[%clk 0:01:37]}  Rad8 {[%clk 0:02:00]} 18. Nd4 {[%clk 0:01:28]}  Bd7 {[%clk 0:01:46]} 19. f4 {[%clk 0:01:24]}  Nc6 {[%clk 0:01:46]} 20. e5 {[%clk 0:01:21]}  Nxd4 {[%clk 0:01:37]} 21. Rxd4 {[%clk 0:01:19]}  Be7 {[%clk 0:01:38]} 22. Kh2 {[%clk 0:01:12]}  Bc6 {[%clk 0:01:33]} 23. Bc2 {[%clk 0:01:05]}  Rxd4 {[%clk 0:01:20]} 24. Rxd4 {[%clk 0:01:03]}  Rd8 {[%clk 0:01:20]} 25. Qd3 {[%clk 0:00:50]}  g6 {[%clk 0:01:19]} 26. Ne4 {[%clk 0:00:40]}  Rxd4 {[%clk 0:01:14]} 27. Qxd4 {[%clk 0:00:39]}  Bd5 {[%clk 0:01:14]} 28. Bb3 {[%clk 0:00:34]}  Bxb3 {[%clk 0:01:08]} 29. axb3 {[%clk 0:00:34]}  Kg7 {[%clk 0:01:08]} 30. Nd6 {[%clk 0:00:33]}  Qc6 {[%clk 0:01:05]} 31. b4 {[%clk 0:00:31]}  b6 {[%clk 0:01:00]} 32. Qc4 {[%clk 0:00:26]}  Qxc4 {[%clk 0:00:56]} 33. Nxc4 {[%clk 0:00:26]}  b5 {[%clk 0:00:53]} 34. Na5 {[%clk 0:00:23]}  Bxb4 {[%clk 0:00:52]} 35. Nc6 {[%clk 0:00:23]}  Bd2 {[%clk 0:00:48]} 36. g3 {[%clk 0:00:21]}  a5 {[%clk 0:00:48]} 37. Kg2 {[%clk 0:00:21]}  a4 {[%clk 0:00:48]} 38. Kf3 {[%clk 0:00:22]}  Bc1 {[%clk 0:00:48]} 39. Nd4 {[%clk 0:00:20]}  Bxb2 {[%clk 0:00:44]} 40. Nxb5 {[%clk 0:00:20]}  a3 {[%clk 0:00:45]} 41. Nxa3 {[%clk 0:00:17]}  Bxa3 {[%clk 0:00:46]} 42. Ke4 {[%clk 0:00:17]}  Kf8 {[%clk 0:00:46]} 43. g4 {[%clk 0:00:17]}  Ke7 {[%clk 0:00:46]} 44. f5 {[%clk 0:00:18]}  Kd7 {[%clk 0:00:45]} 45. h4 {[%clk 0:00:17]}  Kc6 {[%clk 0:00:44]} 46. h5 {[%clk 0:00:17]}  gxh5 {[%clk 0:00:41]} 47. gxh5 {[%clk 0:00:17]}  Kc5 {[%clk 0:00:39]} 48. Kf4 {[%clk 0:00:15]}  Bc1+ {[%clk 0:00:39]} 49. Kg4 {[%clk 0:00:14]}  Kd5 {[%clk 0:00:40]} 50. fxe6 {[%clk 0:00:14]}  fxe6 {[%clk 0:00:39]} 0-1


[Site "https://www.chess.com"]

[Event "Titled Tuesday Blitz February 28 Early 2023"]
[White "Vivas Zamora, Fabian Ernesto"]
[Black "Sliwicki, Damian"]
[WhiteFideId "3902480"]
[BlackFideId "1127128"]
[WhiteElo "2262"]
[BlackElo "1988"]
[Result "1-0"]
[Round "08"]
[TimeControl "180+2"]
[Date "2023.02.28"]
[WhiteClock "0:00:04"]
[BlackClock "0:00:18"]

1. c4 {[%clk 0:02:54]}  Nf6 {[%clk 0:02:51]} 2. Nc3 {[%clk 0:02:52]}  e6 {[%clk 0:02:45]} 3. e4 {[%clk 0:02:48]}  d5 {[%clk 0:02:44]} 4. e5 {[%clk 0:02:48]}  Nfd7 {[%clk 0:02:37]} 5. cxd5 {[%clk 0:02:47]}  Nxe5 {[%clk 0:02:20]} 6. d4 {[%clk 0:02:41]}  Ng6 {[%clk 0:02:17]} 7. dxe6 {[%clk 0:02:38]}  Bxe6 {[%clk 0:02:14]} 8. h4 {[%clk 0:02:37]}  Bb4 {[%clk 0:01:59]} 9. h5 {[%clk 0:02:36]}  Ne7 {[%clk 0:01:59]} 10. Nf3 {[%clk 0:02:26]}  O-O {[%clk 0:01:56]} 11. Bd3 {[%clk 0:02:18]}  Nbc6 {[%clk 0:01:53]} 12. Kf1 {[%clk 0:01:34]}  Kh8 {[%clk 0:01:41]} 13. Be3 {[%clk 0:01:15]}  Bg4 {[%clk 0:01:33]} 14. Rh4 {[%clk 0:01:01]}  f5 {[%clk 0:01:32]} 15. Qb3 {[%clk 0:00:47]}  Bxf3 {[%clk 0:01:21]} 16. gxf3 {[%clk 0:00:48]}  Bxc3 {[%clk 0:01:22]} 17. bxc3 {[%clk 0:00:47]}  Nd5 {[%clk 0:01:22]} 18. Rh2 {[%clk 0:00:33]}  f4 {[%clk 0:01:10]} 19. Bd2 {[%clk 0:00:33]}  Qg5 {[%clk 0:00:49]} 20. h6 {[%clk 0:00:29]}  Ne3+ {[%clk 0:00:41]} 21. fxe3 {[%clk 0:00:27]}  fxe3 {[%clk 0:00:42]} 22. hxg7+ {[%clk 0:00:24]}  Kxg7 {[%clk 0:00:38]} 23. Rxh7+ {[%clk 0:00:22]}  Kf6 {[%clk 0:00:39]} 24. Qb5 {[%clk 0:00:03]}  exd2 {[%clk 0:00:27]} 25. Qxg5+ {[%clk 0:00:01]}  Kxg5 {[%clk 0:00:28]} 26. Ke2 {[%clk 0:00:02]}  Rae8+ {[%clk 0:00:25]} 27. Be4 {[%clk 0:00:02]}  Rxf3 {[%clk 0:00:26]} 28. Kxf3 {[%clk 0:00:03]}  Rf8+ {[%clk 0:00:22]} 29. Ke3 {[%clk 0:00:02]}  Re8 {[%clk 0:00:23]} 30. Rg1+ {[%clk 0:00:02]}  Kf6 {[%clk 0:00:23]} 31. Rf1+ {[%clk 0:00:02]}  Kg5 {[%clk 0:00:23]} 32. Kd3 {[%clk 0:00:02]}  Rd8 {[%clk 0:00:19]} 33. Rg7+ {[%clk 0:00:03]}  Kh6 {[%clk 0:00:18]} 34. Rg6+ {[%clk 0:00:03]}  Kh7 {[%clk 0:00:18]} 35. Rh1# {[%clk 0:00:04]} 1-0


[Site "https://www.chess.com"]

[Event "Titled Tuesday Blitz February 28 Early 2023"]
[White "Eynullayev, Atilla"]
[Black "Sailer, Mike"]
[WhiteFideId "13413570"]
[BlackFideId "2012901"]
[WhiteElo "2181"]
[BlackElo "2109"]
[Result "0-1"]
[Round "08"]
[TimeControl "180+2"]
[Date "2023.02.28"]
[WhiteClock "0:00:04"]
[BlackClock "0:00:20"]

1. d4 {[%clk 0:03:00]}  d5 {[%clk 0:02:57]} 2. c4 {[%clk 0:03:01]}  Bf5 {[%clk 0:02:55]} 3. Nc3 {[%clk 0:03:00]}  e6 {[%clk 0:02:54]} 4. Qb3 {[%clk 0:02:58]}  Nc6 {[%clk 0:02:54]} 5. Qxb7 {[%clk 0:02:55]}  Nb4 {[%clk 0:02:53]} 6. e4 {[%clk 0:02:51]}  dxe4 {[%clk 0:02:44]} 7. c5 {[%clk 0:02:20]}  Nc2+ {[%clk 0:02:39]} 8. Kd1 {[%clk 0:02:19]}  Nxa1 {[%clk 0:02:37]} 9. Bb5+ {[%clk 0:02:19]}  Ke7 {[%clk 0:02:36]} 10. Bg5+ {[%clk 0:02:13]}  f6 {[%clk 0:02:35]} 11. Be3 {[%clk 0:02:12]}  Kf7 {[%clk 0:02:20]} 12. Kc1 {[%clk 0:02:00]}  Ne7 {[%clk 0:02:06]} 13. Bc4 {[%clk 0:01:22]}  Rb8 {[%clk 0:01:58]} 14. Qxa7 {[%clk 0:01:21]}  Nc6 {[%clk 0:01:57]} 15. Qa4 {[%clk 0:01:11]}  Nb4 {[%clk 0:01:26]} 16. Kb1 {[%clk 0:00:56]}  Nd3 {[%clk 0:01:15]} 17. b3 {[%clk 0:00:55]}  Nxf2 {[%clk 0:01:07]} 18. Bxf2 {[%clk 0:00:50]}  e3+ {[%clk 0:01:08]} 19. Kxa1 {[%clk 0:00:51]}  exf2 {[%clk 0:01:08]} 20. Nf3 {[%clk 0:00:52]}  Bg4 {[%clk 0:00:54]} 21. Qc6 {[%clk 0:00:24]}  Qe8 {[%clk 0:00:50]} 22. Qe4 {[%clk 0:00:21]}  Bxf3 {[%clk 0:00:49]} 23. gxf3 {[%clk 0:00:20]}  g6 {[%clk 0:00:35]} 24. d5 {[%clk 0:00:20]}  exd5 {[%clk 0:00:33]} 25. Qxd5+ {[%clk 0:00:17]}  Kg7 {[%clk 0:00:33]} 26. Rf1 {[%clk 0:00:16]}  Rd8 {[%clk 0:00:29]} 27. Qe4 {[%clk 0:00:08]}  Qxe4 {[%clk 0:00:27]} 28. Nxe4 {[%clk 0:00:09]}  f5 {[%clk 0:00:26]} 29. Ng5 {[%clk 0:00:09]}  Kf6 {[%clk 0:00:24]} 30. Ne6 {[%clk 0:00:08]}  Rd2 {[%clk 0:00:22]} 31. Kb1 {[%clk 0:00:06]}  Bh6 {[%clk 0:00:20]} 32. b4 {[%clk 0:00:06]}  Re8 {[%clk 0:00:20]} 33. Nxc7 {[%clk 0:00:04]}  Re1+ {[%clk 0:00:20]} 0-1


[Site "https://www.chess.com"]

[Event "Titled Tuesday Blitz February 28 Early 2023"]
[White "Kalajzic, Ivan"]
[Black "Tarasova, Viktoriya"]
[WhiteFideId "14506378"]
[BlackFideId "4175840"]
[WhiteElo "2203"]
[BlackElo "2182"]
[Result "1-0"]
[Round "08"]
[TimeControl "180+2"]
[Date "2023.02.28"]
[WhiteClock "0:00:06"]
[BlackClock "0:00:05"]

1. b3 {[%clk 0:02:59]}  e5 {[%clk 0:02:58]} 2. Bb2 {[%clk 0:02:59]}  Nc6 {[%clk 0:02:58]} 3. e3 {[%clk 0:03:00]}  d5 {[%clk 0:02:58]} 4. Bb5 {[%clk 0:03:00]}  Bd6 {[%clk 0:02:57]} 5. f4 {[%clk 0:02:59]}  Qe7 {[%clk 0:02:48]} 6. Nf3 {[%clk 0:02:56]}  e4 {[%clk 0:02:45]} 7. Bxg7 {[%clk 0:02:30]}  exf3 {[%clk 0:02:45]} 8. Qxf3 {[%clk 0:02:30]}  f6 {[%clk 0:02:37]} 9. Bxh8 {[%clk 0:02:29]}  Be6 {[%clk 0:02:37]} 10. Nc3 {[%clk 0:02:14]}  O-O-O {[%clk 0:02:36]} 11. Nxd5 {[%clk 0:02:02]}  Bxd5 {[%clk 0:02:01]} 12. Qxd5 {[%clk 0:02:03]}  Be5 {[%clk 0:01:58]} 13. Qxd8+ {[%clk 0:01:39]}  Kxd8 {[%clk 0:01:42]} 14. fxe5 {[%clk 0:01:35]}  Qxe5 {[%clk 0:01:36]} 15. O-O {[%clk 0:01:10]}  Qxb5 {[%clk 0:01:31]} 16. Bxf6+ {[%clk 0:01:10]}  Nxf6 {[%clk 0:01:26]} 17. Rxf6 {[%clk 0:01:11]}  Ne5 {[%clk 0:01:10]} 18. Rf5 {[%clk 0:01:05]}  Qe2 {[%clk 0:00:33]} 19. Rxe5 {[%clk 0:01:01]}  Qxd2 {[%clk 0:00:33]} 20. c4 {[%clk 0:00:51]}  c6 {[%clk 0:00:34]} 21. h3 {[%clk 0:00:48]}  Kc7 {[%clk 0:00:28]} 22. Rf1 {[%clk 0:00:44]}  Qxa2 {[%clk 0:00:26]} 23. Rf7+ {[%clk 0:00:44]}  Kb6 {[%clk 0:00:26]} 24. Ree7 {[%clk 0:00:44]}  Kc5 {[%clk 0:00:20]} 25. Rxb7 {[%clk 0:00:41]}  Qa1+ {[%clk 0:00:20]} 26. Kh2 {[%clk 0:00:40]}  Qe5+ {[%clk 0:00:20]} 27. Rf4 {[%clk 0:00:29]}  Qxe3 {[%clk 0:00:20]} 28. Rbf7 {[%clk 0:00:28]}  Qxb3 {[%clk 0:00:18]} 29. Rxa7 {[%clk 0:00:26]}  Qe3 {[%clk 0:00:16]} 30. Raf7 {[%clk 0:00:26]}  Kb4 {[%clk 0:00:11]} 31. h4 {[%clk 0:00:25]}  Qe5 {[%clk 0:00:10]} 32. Kh3 {[%clk 0:00:24]}  h5 {[%clk 0:00:10]} 33. c5+ {[%clk 0:00:21]}  Kb5 {[%clk 0:00:09]} 34. R7f5 {[%clk 0:00:21]}  Qe6 {[%clk 0:00:08]} 35. Rf3 {[%clk 0:00:17]}  Qd7 {[%clk 0:00:08]} 36. g4 {[%clk 0:00:17]}  hxg4+ {[%clk 0:00:07]} 37. Kxg4 {[%clk 0:00:18]}  Qg7+ {[%clk 0:00:07]} 38. Rg5 {[%clk 0:00:17]}  Qd7+ {[%clk 0:00:07]} 39. Kg3 {[%clk 0:00:16]}  Qd1 {[%clk 0:00:07]} 40. h5 {[%clk 0:00:15]}  Qg1+ {[%clk 0:00:07]} 41. Kf4 {[%clk 0:00:15]}  Qc1+ {[%clk 0:00:07]} 42. Kf5 {[%clk 0:00:16]}  Qb1+ {[%clk 0:00:07]} 43. Kf6 {[%clk 0:00:15]}  Qa1+ {[%clk 0:00:07]} 44. Kg6 {[%clk 0:00:13]}  Qc1 {[%clk 0:00:07]} 45. Rff5 {[%clk 0:00:13]}  Qa1 {[%clk 0:00:05]} 46. h6 {[%clk 0:00:12]}  Qa8 {[%clk 0:00:06]} 47. h7 {[%clk 0:00:11]}  Qe8+ {[%clk 0:00:06]} 48. Rf7 {[%clk 0:00:10]}  Qe6+ {[%clk 0:00:06]} 49. Kg7 {[%clk 0:00:09]}  Qe8 {[%clk 0:00:04]} 50. h8=Q {[%clk 0:00:07]}  Qxh8+ {[%clk 0:00:05]} 51. Kxh8 {[%clk 0:00:07]}  Kc4 {[%clk 0:00:05]} 52. Rf6 {[%clk 0:00:06]}  Kb5 {[%clk 0:00:05]} 53. Rgg6 {[%clk 0:00:06]} 1-0


[Site "https://www.chess.com"]

[Event "Titled Tuesday Blitz February 28 Early 2023"]
[White "Fernandez Garcia, Gumersindo"]
[Black "Fawzy, Adham"]
[WhiteFideId "24516740"]
[BlackFideId "10613129"]
[WhiteElo "2093"]
[BlackElo "2543"]
[Result "1-0"]
[Round "08"]
[TimeControl "180+2"]
[Date "2023.02.28"]
[WhiteClock "0:01:04"]
[BlackClock "0:00:04"]

1. d4 {[%clk 0:03:00]}  Nf6 {[%clk 0:02:59]} 2. Nf3 {[%clk 0:02:55]}  g6 {[%clk 0:02:59]} 3. c4 {[%clk 0:02:53]}  Bg7 {[%clk 0:02:59]} 4. Nc3 {[%clk 0:02:54]}  O-O {[%clk 0:02:58]} 5. Bg5 {[%clk 0:02:54]}  h6 {[%clk 0:02:42]} 6. Bh4 {[%clk 0:02:54]}  c5 {[%clk 0:02:43]} 7. e3 {[%clk 0:02:52]}  cxd4 {[%clk 0:02:40]} 8. exd4 {[%clk 0:02:51]}  d5 {[%clk 0:02:36]} 9. c5 {[%clk 0:02:49]}  Ne4 {[%clk 0:02:18]} 10. Be2 {[%clk 0:02:45]}  Nc6 {[%clk 0:02:03]} 11. O-O {[%clk 0:02:44]}  Bg4 {[%clk 0:02:01]} 12. Re1 {[%clk 0:02:21]}  g5 {[%clk 0:01:36]} 13. Bg3 {[%clk 0:02:21]}  e6 {[%clk 0:01:37]} 14. Ne5 {[%clk 0:02:11]}  Nxe5 {[%clk 0:01:12]} 15. Nxe4 {[%clk 0:02:09]}  Bxe2 {[%clk 0:00:43]} 16. Rxe2 {[%clk 0:01:56]}  Nc6 {[%clk 0:00:31]} 17. Nd6 {[%clk 0:01:54]}  Nxd4 {[%clk 0:00:31]} 18. Rd2 {[%clk 0:01:54]}  Nf5 {[%clk 0:00:20]} 19. Nxf5 {[%clk 0:01:48]}  exf5 {[%clk 0:00:21]} 20. Rxd5 {[%clk 0:01:48]}  Qf6 {[%clk 0:00:22]} 21. Be5 {[%clk 0:01:47]}  Qe6 {[%clk 0:00:22]} 22. Bxg7 {[%clk 0:01:46]}  Kxg7 {[%clk 0:00:23]} 23. Qd4+ {[%clk 0:01:46]}  Qf6 {[%clk 0:00:20]} 24. Rd1 {[%clk 0:01:45]}  Rfe8 {[%clk 0:00:18]} 25. g3 {[%clk 0:01:40]}  Qxd4 {[%clk 0:00:17]} 26. R1xd4 {[%clk 0:01:39]}  Re7 {[%clk 0:00:18]} 27. Rxf5 {[%clk 0:01:39]}  Rc8 {[%clk 0:00:17]} 28. Rfd5 {[%clk 0:01:39]}  Rec7 {[%clk 0:00:16]} 29. b4 {[%clk 0:01:39]}  b6 {[%clk 0:00:16]} 30. cxb6 {[%clk 0:01:37]}  axb6 {[%clk 0:00:17]} 31. Rd6 {[%clk 0:01:37]}  Ra8 {[%clk 0:00:17]} 32. Rd2 {[%clk 0:01:33]}  b5 {[%clk 0:00:15]} 33. Rb6 {[%clk 0:01:32]}  g4 {[%clk 0:00:13]} 34. Rxb5 {[%clk 0:01:32]}  Rc1+ {[%clk 0:00:12]} 35. Kg2 {[%clk 0:01:31]}  Re8 {[%clk 0:00:13]} 36. h3 {[%clk 0:01:26]}  gxh3+ {[%clk 0:00:11]} 37. Kxh3 {[%clk 0:01:26]}  Ree1 {[%clk 0:00:10]} 38. a4 {[%clk 0:01:23]}  Rh1+ {[%clk 0:00:09]} 39. Kg2 {[%clk 0:01:24]}  Rhg1+ {[%clk 0:00:08]} 40. Kf3 {[%clk 0:01:20]}  Rc3+ {[%clk 0:00:07]} 41. Ke2 {[%clk 0:01:20]}  Ra1 {[%clk 0:00:06]} 42. a5 {[%clk 0:01:20]}  Kf6 {[%clk 0:00:07]} 43. Rb6+ {[%clk 0:01:20]}  Kg5 {[%clk 0:00:06]} 44. a6 {[%clk 0:01:20]}  f5 {[%clk 0:00:07]} 45. b5 {[%clk 0:01:18]}  h5 {[%clk 0:00:06]} 46. Rb7 {[%clk 0:01:18]}  h4 {[%clk 0:00:07]} 47. gxh4+ {[%clk 0:01:18]}  Kxh4 {[%clk 0:00:07]} 48. a7 {[%clk 0:01:17]}  f4 {[%clk 0:00:08]} 49. f3 {[%clk 0:01:07]}  Kg3 {[%clk 0:00:07]} 50. Rg7+ {[%clk 0:01:08]}  Kh2 {[%clk 0:00:07]} 51. b6 {[%clk 0:01:05]}  Re3+ {[%clk 0:00:05]} 52. Kf2 {[%clk 0:01:05]}  Raa3 {[%clk 0:00:04]} 53. Rh7# {[%clk 0:01:04]} 1-0


[Site "https://www.chess.com"]

[Event "Titled Tuesday Blitz February 28 Early 2023"]
[White "Alahakoon, Isuru"]
[Black "Rottenwohrer Suarez, Juan"]
[WhiteFideId "9900993"]
[BlackFideId "32068182"]
[WhiteElo "1995"]
[BlackElo "2174"]
[Result "0-1"]
[Round "08"]
[TimeControl "180+2"]
[Date "2023.02.28"]
[WhiteClock "0:00:08"]
[BlackClock "0:00:21"]

1. Nf3 {[%clk 0:03:00]}  g6 {[%clk 0:02:59]} 2. d4 {[%clk 0:03:00]}  Bg7 {[%clk 0:03:00]} 3. e4 {[%clk 0:02:59]}  c5 {[%clk 0:02:59]} 4. dxc5 {[%clk 0:02:59]}  Qa5+ {[%clk 0:02:58]} 5. Bd2 {[%clk 0:02:59]}  Qxc5 {[%clk 0:02:59]} 6. Nc3 {[%clk 0:02:59]}  Nf6 {[%clk 0:02:58]} 7. e5 {[%clk 0:02:33]}  Ng4 {[%clk 0:02:56]} 8. Ne4 {[%clk 0:02:32]}  Qd5 {[%clk 0:02:50]} 9. Qe2 {[%clk 0:02:20]}  Nxe5 {[%clk 0:02:45]} 10. Nxe5 {[%clk 0:02:19]}  Bxe5 {[%clk 0:02:41]} 11. c4 {[%clk 0:02:14]}  Qc6 {[%clk 0:02:36]} 12. Bh6 {[%clk 0:02:07]}  d6 {[%clk 0:02:24]} 13. O-O-O {[%clk 0:02:06]}  Be6 {[%clk 0:02:18]} 14. f4 {[%clk 0:02:04]}  d5 {[%clk 0:01:44]} 15. Nd2 {[%clk 0:01:11]}  Bf6 {[%clk 0:01:37]} 16. Kb1 {[%clk 0:01:10]}  Nd7 {[%clk 0:01:28]} 17. g4 {[%clk 0:01:04]}  dxc4 {[%clk 0:01:03]} 18. Bg2 {[%clk 0:00:52]}  Qb6 {[%clk 0:01:03]} 19. Ne4 {[%clk 0:00:50]}  O-O-O {[%clk 0:00:37]} 20. g5 {[%clk 0:00:42]}  Bd4 {[%clk 0:00:35]} 21. Rc1 {[%clk 0:00:23]}  Kb8 {[%clk 0:00:32]} 22. Rhd1 {[%clk 0:00:19]}  Nc5 {[%clk 0:00:32]} 23. Nxc5 {[%clk 0:00:18]}  Qxc5 {[%clk 0:00:29]} 24. Qf3 {[%clk 0:00:15]}  Qb6 {[%clk 0:00:28]} 25. Rd2 {[%clk 0:00:14]}  c3 {[%clk 0:00:25]} 26. Rxd4 {[%clk 0:00:08]}  Qxb2# {[%clk 0:00:21]} 0-1


[Site "https://www.chess.com"]